[Event "95th Caplin Hastings Congress"]
[Site "Hastings"]
[Date "2020.01.03"]
[Round "7.20"]
[White "Lehaci, Miruna-Daria"]
[Black "Pekin, Tolgay"]
[Result "1-0"]
[ECO "B01"]
[WhiteElo "2214"]
[BlackElo "2080"]
[Annotator "NA"]
[PlyCount "67"]
[EventDate "2019.12.28"]
[EventType "swiss"]
[EventCountry "ENG"]
[SourceTitle "playchess.com"]
[Source "ChessBase"]
[SourceQuality "1"]
[TimeControl "40/6600+30:3000+30"]

1. e4 {[%emt 0:13:23]} d5 {[%emt 0:15:08]} 2. exd5 {[%emt 0:00:07]} Qxd5 {[%emt 0:00:07]} 3. Nc3 {[%emt 0:02:48]} Qd6 {[%emt 0:00:57]} 4. d4 {[%emt 0:00:20]} Nf6 {[%emt 0:00:14]} 5. Nf3 {[%emt 0:01:41]} c6 {[%emt 0:01:04]} 6. g3 {[%emt 0:00:31]} Bg4 {[%emt 0:02:20]} 7. Bg2 {[%emt 0:00:16]} e6 {[%emt 0:07:02]} 8. O-O {[%emt 0:00:36]} Qc7 {[%emt 0:05:50]} 9. Rb1 {[%emt 0:05:48]} Nbd7 {[%emt 0:02:22]} 10. b4 {[%emt 0:01:12]} Nd5 {[%emt 0:01:48]} 11. Ne2 {[%emt 0:16:09]} Bxb4 {[%emt 0:33:39]} 12. c4 {[%emt 0:10:18]} Nc3 {[%emt 0:00:52]} 13. Nxc3 {[%emt 0:00:05]} Bxc3 {[%emt 0:00:05]} 14. Rb3 {[%emt 0:13:35]} Ba5 {[%emt 0:05:46]} 15. Bf4 {[%emt 0:01:45]} e5 {[%emt 0:09:44]} 16. dxe5 {[%emt 0:00:40]} Be6 {[%emt 0:00:54]} 17. Rb1 {[%emt 0:14:42]} h6 {[%emt 0:07:06]} 18. Nd4 {[%emt 0:02:57]} Nc5 {[%emt 0:01:48]} 19. Qe2 {[%emt 0:14:41]} g5 {[%emt 0:03:19]} 20. Be3 {[%emt 0:00:59]} Bb6 {[%emt 0:04:14]} 21. f4 {[%emt 0:02:13]} gxf4 {[%emt 0:01:00]} 22. gxf4 {[%emt 0:00:04]} Na4 {[%emt 0:04:02]} 23. Nxe6 {[%emt 0:06:46]} fxe6 {[%emt 0:01:47]} 24. c5 {[%emt 0:02:14]} Nxc5 {[%emt 0:02:53]} 25. Rfd1 {[%emt 0:01:24]} Na4 {[%emt 0:04:31]} 26. Bxb6 {[%emt 0:02:56]} Nxb6 {[%emt 0:00:24]} 27. Rd6 {[%emt 0:00:05]} Qf7 {[%emt 0:01:10]} 28. Qg4 {[%emt 0:01:13]} Ke7 {[%emt 0:00:43]} 29. Qh4+ {[%emt 0:00:13]} Kf8 {[%emt 0:00:38]} 30. Rbd1 {[%emt 0:00:09]} Nd5 {[%emt 0:00:24]} 31. f5 {[%emt 0:00:42]} exf5 {[%emt 0:01:22]} 32. Bxd5 {[%emt 0:00:16]} Qg7+ {[%emt 0:00:23]} 33. Bg2 {[%emt 0:00:09]} Qxe5 {[%emt 0:00:15]} 34. Qb4 {[%emt 0:01:11]} 1-0

[Event "95th Caplin Hastings Congress"]
[Site "Hastings"]
[Date "2020.01.03"]
[Round "7.21"]
[White "Keetman, Maaike"]
[Black "Thorpe, Thomas"]
[Result "1/2-1/2"]
[ECO "B30"]
[WhiteElo "2193"]
[BlackElo "1924"]
[Annotator "NA"]
[PlyCount "101"]
[EventDate "2019.12.28"]
[EventType "swiss"]
[EventCountry "ENG"]
[SourceTitle "playchess.com"]
[Source "ChessBase"]
[SourceQuality "1"]
[TimeControl "40/6600+30:3000+30"]

1. e4 {[%emt 0:09:33]} c5 {[%emt 0:09:35]} 2. Nf3 {[%emt 0:00:06]} Nc6 {[%emt 0:00:27]} 3. Bb5 {[%emt 0:00:13]} e6 {[%emt 0:00:46]} 4. O-O {[%emt 0:00:46]} Nge7 {[%emt 0:00:07]} 5. Re1 {[%emt 0:00:14]} a6 {[%emt 0:00:23]} 6. Bf1 {[%emt 0:00:08]} d5 {[%emt 0:00:37]} 7. d3 {[%emt 0:04:03]} f6 {[%emt 0:21:57]} 8. exd5 {[%emt 0:12:26]} Nxd5 {[%emt 0:00:00]} 9. d4 {[%emt 0:03:34]} Be7 {[%emt 0:11:52]} 10. c3 {[%emt 0:14:44]} O-O {[%emt 0:02:35]} 11. Bd3 {[%emt 0:23:14]} f5 {[%emt 0:16:06]} 12. dxc5 {[%emt 0:00:30]} Bxc5 {[%emt 0:00:30]} 13. Ng5 {[%emt 0:03:04]} Qf6 {[%emt 0:07:26]} 14. Qe2 {[%emt 0:07:50]} h6 {[%emt 0:04:29]} 15. Nf3 {[%emt 0:02:34]} Bd6 {[%emt 0:05:21]} 16. Bc4 {[%emt 0:07:53]} Kh8 {[%emt 0:09:38]} 17. Bxd5 {[%emt 0:00:53]} exd5 {[%emt 0:00:00]} 18. Be3 {[%emt 0:00:09]} f4 {[%emt 0:04:27]} 19. Bb6 {[%emt 0:01:15]} Bg4 {[%emt 0:01:46]} 20. Nbd2 {[%emt 0:04:59]} Qg6 {[%emt 0:03:21]} 21. Kh1 {[%emt 0:04:00]} Rae8 {[%emt 0:03:29]} 22. Qf1 {[%emt 0:02:29]} Ne5 {[%emt 0:00:36]} 23. Nxe5 {[%emt 0:00:00]} Bxe5 {[%emt 0:01:00]} 24. Bc5 {[%emt 0:00:00]} Bd6 {[%emt 0:03:27]} 25. Bxd6 {[%emt 0:00:00]} Qxd6 {[%emt 0:00:03]} 26. f3 {[%emt 0:01:00]} Bf5 {[%emt 0:00:41]} 27. Qf2 {[%emt 0:01:02]} d4 {[%emt 0:03:58]} 28. Nc4 {[%emt 0:02:30]} Qd5 {[%emt 0:01:57]} 29. Qxd4 {[%emt 0:00:47]} Qxd4 {[%emt 0:00:33]} 30. cxd4 {[%emt 0:00:06]} Rxe1+ {[%emt 0:03:49]} 31. Rxe1 {[%emt 0:00:45]} Rd8 32. Rd1 {[%emt 0:00:57]} Be6 {[%emt 0:00:52]} 33. b3 {[%emt 0:00:48]} g5 {[%emt 0:01:39]} 34. Kg1 {[%emt 0:01:23]} Kg7 {[%emt 0:00:42]} 35. Kf2 {[%emt 0:01:06]} Kf6 {[%emt 0:01:55]} 36. Ke2 {[%emt 0:00:13]} b5 {[%emt 0:02:22]} 37. Ne5 {[%emt 0:00:39]} Bf5 {[%emt 0:03:37]} 38. Nc6 {[%emt 0:00:43]} Rd6 {[%emt 0:04:20]} 39. Ne5 {[%emt 0:09:15]} Rd8 40. Rd2 {[%emt 0:00:00]} Ke6 41. Kd1 {[%emt 0:25:57]} Rd6 {[%emt 0:02:45]} 42. Kc1 {[%emt 0:00:00]} Kd5 {[%emt 0:02:17]} 43. Kb2 {[%emt 0:02:48]} a5 {[%emt 0:06:32]} 44. Rd1 {[%emt 0:05:17]} Bh7 {[%emt 0:07:50]} 45. Kc3 {[%emt 0:02:10]} Rd8 {[%emt 0:02:55]} 46. Kb2 {[%emt 0:06:05]} Rc8 {[%emt 0:00:18]} 47. Rd2 {[%emt 0:00:56]} Bf5 {[%emt 0:00:23]} 48. a3 {[%emt 0:00:16]} Rc7 {[%emt 0:00:00]} 49. g3 {[%emt 0:02:13]} Rc8 {[%emt 0:05:39]} 50. Nf7 {[%emt 0:01:21]} Rc6 {[%emt 0:00:37]} 51. Ne5 {[%emt 0:00:19]} 1/2-1/2

[Event "95th Caplin Hastings Congress"]
[Site "Hastings"]
[Date "2020.01.03"]
[Round "7.22"]
[White "Brozel, Sacha"]
[Black "Akeya-Price, Robert"]
[Result "1-0"]
[ECO "E05"]
[WhiteElo "2150"]
[BlackElo "1818"]
[Annotator "NA"]
[PlyCount "121"]
[EventDate "2019.12.28"]
[EventType "swiss"]
[EventCountry "ENG"]
[SourceTitle "playchess.com"]
[Source "ChessBase"]
[SourceQuality "1"]
[TimeControl "40/6600+30:3000+30"]

1. d4 {[%emt 0:12:34]} Nf6 {[%emt 0:09:39]} 2. c4 {[%emt 0:00:20]} e6 {[%emt 0:00:08]} 3. g3 {[%emt 0:00:05]} d5 {[%emt 0:00:14]} 4. Bg2 {[%emt 0:00:06]} Be7 {[%emt 0:00:18]} 5. Nf3 {[%emt 0:00:38]} O-O {[%emt 0:00:09]} 6. O-O {[%emt 0:00:21]} dxc4 {[%emt 0:01:28]} 7. Qc2 {[%emt 0:00:48]} a6 {[%emt 0:01:08]} 8. Qxc4 {[%emt 0:00:12]} b5 {[%emt 0:00:08]} 9. Qc2 {[%emt 0:00:07]} Bb7 {[%emt 0:00:08]} 10. Bd2 {[%emt 0:00:46]} Be4 {[%emt 0:01:52]} 11. Qc1 {[%emt 0:00:15]} Bb7 {[%emt 0:09:40]} 12. Bf4 {[%emt 0:13:44]} Nd5 {[%emt 0:01:38]} 13. Nc3 {[%emt 0:06:34]} Nxf4 {[%emt 0:02:46]} 14. Qxf4 {[%emt 0:00:47]} Nd7 {[%emt 0:06:29]} 15. Rfd1 {[%emt 0:04:58]} Bd6 {[%emt 0:09:49]} 16. Qe3 {[%emt 0:08:17]} Nb6 {[%emt 0:15:46]} 17. Qd3 {[%emt 0:10:39]} c5 {[%emt 0:11:42]} 18. dxc5 {[%emt 0:26:27]} Bxc5 {[%emt 0:00:10]} 19. Qc2 {[%emt 0:00:06]} Qf6 {[%emt 0:11:59]} 20. Ne4 {[%emt 0:05:30]} Bxe4 {[%emt 0:00:19]} 21. Qxc5 {[%emt 0:01:41]} Na4 {[%emt 0:09:20]} 22. Qe3 {[%emt 0:04:09]} Bxf3 {[%emt 0:01:02]} 23. Qxf3 {[%emt 0:01:57]} Qxf3 {[%emt 0:03:50]} 24. Bxf3 {[%emt 0:00:18]} Rad8 {[%emt 0:02:11]} 25. b4 {[%emt 0:02:03]} Nb2 {[%emt 0:01:43]} 26. Rxd8 {[%emt 0:02:24]} Rxd8 {[%emt 0:00:02]} 27. Bb7 {[%emt 0:00:50]} Rd6 {[%emt 0:00:12]} 28. Rc1 {[%emt 0:01:21]} Nc4 {[%emt 0:00:11]} 29. a4 {[%emt 0:01:32]} f5 {[%emt 0:05:36]} 30. Bxa6 {[%emt 0:00:22]} Rxa6 {[%emt 0:00:41]} 31. axb5 {[%emt 0:00:06]} Rb6 {[%emt 0:00:14]} 32. Rxc4 {[%emt 0:00:10]} Rxb5 {[%emt 0:00:03]} 33. f3 {[%emt 0:06:49]} Kf7 {[%emt 0:00:39]} 34. Kf2 {[%emt 0:00:06]} Kf6 {[%emt 0:05:04]} 35. e4 {[%emt 0:02:12]} fxe4 {[%emt 0:00:56]} 36. Rxe4 {[%emt 0:00:47]} e5 {[%emt 0:06:34]} 37. Ke3 {[%emt 0:00:46]} Rd5 {[%emt 0:01:31]} 38. Rc4 {[%emt 0:04:05]} h5 {[%emt 0:01:52]} 39. Ke4 {[%emt 0:01:26]} Rb5 {[%emt 0:01:29]} 40. h4 {[%emt 0:01:15]} g6 {[%emt 0:00:18]} 41. Kd3 {[%emt 0:03:01]} Ke6 {[%emt 0:07:42]} 42. Kc3 {[%emt 0:11:00]} Kd5 {[%emt 0:04:06]} 43. Rc8 {[%emt 0:02:44]} Rb6 {[%emt 0:00:37]} 44. Rc5+ {[%emt 0:02:14]} Kd6 {[%emt 0:01:11]} 45. Kc4 {[%emt 0:01:15]} Ra6 {[%emt 0:01:41]} 46. Rd5+ {[%emt 0:00:47]} Ke6 {[%emt 0:01:00]} 47. Rd3 {[%emt 0:00:18]} Rc6+ {[%emt 0:01:11]} 48. Kb5 {[%emt 0:00:12]} Rc1 {[%emt 0:00:57]} 49. Kb6 {[%emt 0:00:44]} Kf5 {[%emt 0:01:14]} 50. b5 {[%emt 0:00:46]} Rc4 {[%emt 0:06:43]} 51. Kb7 {[%emt 0:03:22]} e4 {[%emt 0:04:06]} 52. Rd5+ {[%emt 0:02:35]} Ke6 {[%emt 0:00:15]} 53. fxe4 {[%emt 0:00:08]} Rxe4 {[%emt 0:00:08]} 54. Rg5 {[%emt 0:00:26]} Kf6 {[%emt 0:01:22]} 55. b6 {[%emt 0:00:08]} Rb4 {[%emt 0:00:46]} 56. Kc7 {[%emt 0:00:37]} Rc4+ {[%emt 0:00:21]} 57. Kb8 {[%emt 0:00:40]} Rb4 {[%emt 0:00:38]} 58. b7 {[%emt 0:00:07]} Rb3 {[%emt 0:00:17]} 59. Ka7 {[%emt 0:00:23]} Ra3+ {[%emt 0:00:10]} 60. Kb6 {[%emt 0:00:07]} Rb3+ {[%emt 0:00:11]} 61. Rb5 {[%emt 0:00:09]} 1-0

[Event "95th Caplin Hastings Congress"]
[Site "Hastings"]
[Date "2020.01.03"]
[Round "7.23"]
[White "Comellas Blanchart, Jordi"]
[Black "Terentiev, Sergei"]
[Result "1/2-1/2"]
[ECO "B22"]
[WhiteElo "2125"]
[BlackElo "2292"]
[Annotator "NA"]
[PlyCount "39"]
[EventDate "2019.12.28"]
[EventType "swiss"]
[EventCountry "ENG"]
[SourceTitle "playchess.com"]
[Source "ChessBase"]
[SourceQuality "1"]
[TimeControl "40/6600+30:3000+30"]

1. e4 {[%emt 0:09:34]} c5 {[%emt 0:10:32]} 2. Nf3 {[%emt 0:00:08]} e6 {[%emt 0:01:28]} 3. c3 {[%emt 0:00:13]} d6 {[%emt 0:10:53]} 4. d4 {[%emt 0:01:57]} cxd4 {[%emt 0:00:45]} 5. cxd4 {[%emt 0:01:04]} Nf6 {[%emt 0:00:08]} 6. Nc3 {[%emt 0:01:06]} Be7 {[%emt 0:00:11]} 7. Bd3 {[%emt 0:07:02]} O-O {[%emt 0:02:02]} 8. O-O {[%emt 0:00:11]} Nc6 {[%emt 0:01:21]} 9. Bc2 {[%emt 0:12:50]} a6 {[%emt 0:05:34]} 10. Qe2 {[%emt 0:16:59]} Qa5 {[%emt 0:13:37]} 11. e5 {[%emt 0:08:21]} dxe5 {[%emt 0:00:39]} 12. dxe5 {[%emt 0:00:12]} Nd7 {[%emt 0:00:14]} 13. Qe4 {[%emt 0:01:35]} f5 {[%emt 0:00:47]} 14. exf6 {[%emt 0:01:08]} Nxf6 {[%emt 0:00:07]} 15. Qh4 {[%emt 0:03:56]} Qh5 {[%emt 0:02:24]} 16. Qxh5 {[%emt 0:02:01]} Nxh5 {[%emt 0:00:09]} 17. Re1 {[%emt 0:01:39]} Nb4 {[%emt 0:16:41]} 18. Be4 {[%emt 0:13:04]} Nf6 {[%emt 0:00:55]} 19. Bb1 {[%emt 0:01:34]} Nbd5 {[%emt 0:07:25]} 20. Ne4 {[%emt 0:07:17]} 1/2-1/2

[Event "95th Caplin Hastings Congress"]
[Site "Hastings"]
[Date "2020.01.03"]
[Round "7.24"]
[White "Norinkeviciute, Rasa"]
[Black "Ratsma, Midas"]
[Result "0-1"]
[ECO "A13"]
[WhiteElo "2018"]
[BlackElo "2271"]
[Annotator "NA"]
[PlyCount "118"]
[EventDate "2019.12.28"]
[EventType "swiss"]
[EventCountry "ENG"]
[SourceTitle "playchess.com"]
[Source "ChessBase"]
[SourceQuality "1"]
[TimeControl "40/6600+30:3000+30"]

1. c4 {[%emt 0:09:33]} e6 {[%emt 0:10:41]} 2. g3 {[%emt 0:00:47]} d5 {[%emt 0:00:04]} 3. Bg2 {[%emt 0:00:06]} d4 {[%emt 0:02:22]} 4. d3 {[%emt 0:04:08]} c5 {[%emt 0:00:14]} 5. e4 {[%emt 0:02:58]} e5 {[%emt 0:04:40]} 6. f4 {[%emt 0:01:11]} Nc6 {[%emt 0:01:36]} 7. Nf3 {[%emt 0:01:36]} Bd6 {[%emt 0:00:56]} 8. f5 {[%emt 0:06:43]} Bd7 {[%emt 0:02:04]} 9. g4 {[%emt 0:07:27]} Nf6 {[%emt 0:05:37]} 10. h3 {[%emt 0:03:50]} Qa5+ {[%emt 0:09:57]} 11. Ke2 {[%emt 0:05:32]} b5 {[%emt 0:04:32]} 12. Bd2 {[%emt 0:04:10]} Nb4 {[%emt 0:03:25]} 13. Na3 {[%emt 0:01:32]} a6 {[%emt 0:08:15]} 14. Ne1 {[%emt 0:06:48]} O-O-O {[%emt 0:06:39]} 15. Qb3 {[%emt 0:08:32]} Qa4 {[%emt 0:05:03]} 16. Qxa4 {[%emt 0:15:17]} bxa4 {[%emt 0:00:18]} 17. b3 {[%emt 0:00:10]} Kc7 {[%emt 0:05:44]} 18. Nec2 {[%emt 0:06:25]} Rb8 {[%emt 0:02:18]} 19. Bxb4 {[%emt 0:14:30]} cxb4 {[%emt 0:00:30]} 20. c5 {[%emt 0:00:11]} Bxc5 {[%emt 0:01:52]} 21. Nc4 {[%emt 0:00:20]} Rhe8 {[%emt 0:01:44]} 22. Rhc1 {[%emt 0:01:19]} Bb5 {[%emt 0:03:49]} 23. Ne1 {[%emt 0:07:16]} Nd7 {[%emt 0:01:11]} 24. g5 {[%emt 0:01:00]} Bxc4 {[%emt 0:05:36]} 25. Rxc4 {[%emt 0:00:20]} a3 {[%emt 0:00:38]} 26. Rac1 {[%emt 0:00:57]} Kd6 {[%emt 0:00:12]} 27. Bf3 {[%emt 0:01:40]} Rb5 {[%emt 0:03:42]} 28. Bh5 {[%emt 0:03:08]} Re7 {[%emt 0:02:11]} 29. Nf3 {[%emt 0:00:33]} g6 {[%emt 0:12:01]} 30. f6 {[%emt 0:01:15]} Re8 {[%emt 0:00:11]} 31. Bg4 {[%emt 0:00:50]} Nb6 {[%emt 0:00:11]} 32. R4c2 {[%emt 0:00:10]} a5 {[%emt 0:00:41]} 33. Nd2 {[%emt 0:00:24]} a4 {[%emt 0:04:18]} 34. Nc4+ {[%emt 0:02:59]} Nxc4 {[%emt 0:00:06]} 35. bxa4 {[%emt 0:01:39]} Ne3 {[%emt 0:02:02]} 36. axb5 {[%emt 0:00:10]} Nxc2 {[%emt 0:00:04]} 37. Rxc2 {[%emt 0:00:03]} Ra8 {[%emt 0:00:17]} 38. Rc1 {[%emt 0:02:28]} b3 {[%emt 0:00:31]} 39. b6 {[%emt 0:00:53]} Bxb6 {[%emt 0:01:24]} 40. Rb1 {[%emt 0:00:34]} bxa2 {[%emt 0:01:04]} 41. Ra1 {[%emt 0:00:50]} Ba5 {[%emt 0:00:24]} 42. Rxa2 {[%emt 0:00:13]} Bc3 {[%emt 0:03:10]} 43. Bc8 {[%emt 0:06:29]} Rxc8 {[%emt 0:02:43]} 44. Rxa3 {[%emt 0:00:00]} Bb4 {[%emt 0:01:23]} 45. Ra6+ {[%emt 0:00:03]} Kd7 {[%emt 0:00:11]} 46. Ra7+ {[%emt 0:03:58]} Rc7 {[%emt 0:00:07]} 47. Ra4 {[%emt 0:00:34]} Bd6 {[%emt 0:00:16]} 48. Kd2 {[%emt 0:01:03]} Rb7 {[%emt 0:00:26]} 49. Kc2 {[%emt 0:00:24]} Ke6 {[%emt 0:01:23]} 50. Ra8 {[%emt 0:04:28]} Rc7+ {[%emt 0:00:00]} 51. Kd2 {[%emt 0:02:50]} Bb4+ {[%emt 0:00:00]} 52. Kd1 {[%emt 0:01:08]} Rc3 {[%emt 0:00:07]} 53. Ra6+ {[%emt 0:00:00]} Bd6 {[%emt 0:00:43]} 54. Kd2 {[%emt 0:00:00]} Ra3 {[%emt 0:01:35]} 55. Rb6 {[%emt 0:02:08]} Ra2+ {[%emt 0:00:00]} 56. Ke1 {[%emt 0:00:24]} Rh2 {[%emt 0:00:00]} 57. h4 {[%emt 0:00:22]} Rxh4 {[%emt 0:00:00]} 58. Kf2 {[%emt 0:00:22]} Rg4 {[%emt 0:00:00]} 59. Kf3 {[%emt 0:00:20]} Rxg5 {[%emt 0:00:00]} 0-1

[Event "95th Caplin Hastings Congress"]
[Site "Hastings"]
[Date "2020.01.03"]
[Round "7.25"]
[White "Ratnesan, Ranesh"]
[Black "McNally, Richard J E"]
[Result "1/2-1/2"]
[ECO "D36"]
[WhiteElo "2252"]
[BlackElo "1967"]
[Annotator "NA"]
[PlyCount "134"]
[EventDate "2019.12.28"]
[EventType "swiss"]
[EventCountry "ENG"]
[SourceTitle "playchess.com"]
[Source "ChessBase"]
[SourceQuality "1"]
[TimeControl "40/6600+30:3000+30"]

1. d4 {[%emt 0:09:35]} d5 {[%emt 0:09:48]} 2. c4 {[%emt 0:00:11]} e6 {[%emt 0:00:20]} 3. Nc3 {[%emt 0:00:13]} Nf6 {[%emt 0:00:17]} 4. cxd5 {[%emt 0:01:33]} exd5 {[%emt 0:00:12]} 5. Bg5 {[%emt 0:00:13]} c6 {[%emt 0:00:24]} 6. Qc2 {[%emt 0:00:43]} Na6 {[%emt 0:00:28]} 7. a3 {[%emt 0:01:41]} Nc7 {[%emt 0:00:32]} 8. e3 {[%emt 0:05:14]} Be7 {[%emt 0:01:29]} 9. Bd3 {[%emt 0:00:58]} Ne6 {[%emt 0:00:40]} 10. Bh4 {[%emt 0:01:07]} Nh5 {[%emt 0:01:35]} 11. Bxe7 {[%emt 0:07:16]} Qxe7 {[%emt 0:00:13]} 12. Nge2 {[%emt 0:01:50]} Nf6 {[%emt 0:00:31]} 13. O-O {[%emt 0:11:06]} g6 {[%emt 0:00:37]} 14. b4 {[%emt 0:03:22]} a6 {[%emt 0:00:37]} 15. Rab1 {[%emt 0:02:15]} O-O {[%emt 0:00:19]} 16. a4 {[%emt 0:01:54]} Ng7 {[%emt 0:00:51]} 17. b5 {[%emt 0:03:35]} axb5 {[%emt 0:00:14]} 18. axb5 {[%emt 0:00:20]} Bf5 {[%emt 0:00:46]} 19. Nf4 {[%emt 0:05:35]} Bxd3 {[%emt 0:08:36]} 20. Nxd3 {[%emt 0:00:26]} Nf5 {[%emt 0:04:22]} 21. bxc6 {[%emt 0:15:33]} bxc6 {[%emt 0:00:11]} 22. Na4 {[%emt 0:03:00]} Ng4 {[%emt 0:11:30]} 23. Rfe1 {[%emt 0:11:01]} Qd6 {[%emt 0:03:38]} 24. g3 {[%emt 0:07:31]} Nh4 {[%emt 0:03:35]} 25. gxh4 {[%emt 0:06:25]} Qxh2+ {[%emt 0:00:29]} 26. Kf1 {[%emt 0:00:06]} Rfe8 {[%emt 0:03:46]} 27. Qb3 {[%emt 0:06:03]} Reb8 {[%emt 0:03:57]} 28. Nb6 {[%emt 0:09:25]} Ra6 {[%emt 0:00:57]} 29. Qd1 {[%emt 0:01:00]} Qh3+ {[%emt 0:01:20]} 30. Ke2 {[%emt 0:00:07]} Raxb6 {[%emt 0:01:05]} 31. Rxb6 {[%emt 0:00:37]} Rxb6 {[%emt 0:00:14]} 32. Rh1 {[%emt 0:00:23]} Nh2 {[%emt 0:01:26]} 33. Kd2 {[%emt 0:02:51]} Nf3+ {[%emt 0:02:40]} 34. Kc3 {[%emt 0:00:24]} Qf5 {[%emt 0:01:03]} 35. Qa4 {[%emt 0:01:30]} h5 {[%emt 0:03:12]} 36. Nf4 {[%emt 0:01:25]} Rb1 {[%emt 0:01:56]} 37. Rxb1 {[%emt 0:00:44]} Qxb1 {[%emt 0:00:12]} 38. Nd3 {[%emt 0:00:21]} Qb6 {[%emt 0:05:21]} 39. Ne5 {[%emt 0:00:40]} Nxe5 {[%emt 0:01:41]} 40. dxe5 {[%emt 0:00:06]} Kg7 {[%emt 0:01:21]} 41. Qf4 {[%emt 0:07:35]} c5 {[%emt 0:00:51]} 42. Qg5 {[%emt 0:03:30]} f6 {[%emt 0:01:42]} 43. Qg3 {[%emt 0:06:18]} Qb4+ {[%emt 0:01:02]} 44. Kc2 {[%emt 0:00:15]} Qe4+ {[%emt 0:00:20]} 45. Kd2 {[%emt 0:00:11]} Qxe5 {[%emt 0:00:16]} 46. Qh3 {[%emt 0:00:26]} f5 {[%emt 0:02:00]} 47. Qg2 {[%emt 0:00:49]} c4 {[%emt 0:01:41]} 48. Qg5 {[%emt 0:00:33]} d4 {[%emt 0:03:21]} 49. exd4 {[%emt 0:01:21]} Qxd4+ {[%emt 0:00:27]} 50. Kc1 {[%emt 0:00:13]} Qf6 {[%emt 0:01:38]} 51. Qg3 {[%emt 0:00:45]} f4 {[%emt 0:02:40]} 52. Qh3 {[%emt 0:00:51]} Qa1+ {[%emt 0:01:11]} 53. Kc2 {[%emt 0:01:03]} c3 {[%emt 0:04:18]} 54. Qd7+ {[%emt 0:01:46]} Kh6 {[%emt 0:00:13]} 55. Qe7 {[%emt 0:00:36]} Qb2+ {[%emt 0:00:42]} 56. Kd3 {[%emt 0:00:06]} c2 {[%emt 0:01:10]} 57. Qf8+ {[%emt 0:00:51]} Kh7 {[%emt 0:00:22]} 58. Qf7+ {[%emt 0:00:17]} Qg7 {[%emt 0:00:23]} 59. Qxf4 {[%emt 0:00:15]} c1=Q {[%emt 0:02:52]} 60. Qxc1 {[%emt 0:00:09]} Qd7+ {[%emt 0:00:13]} 61. Ke2 {[%emt 0:00:48]} Qg4+ {[%emt 0:00:30]} 62. Kf1 {[%emt 0:00:43]} Qxh4 {[%emt 0:00:24]} 63. Qc7+ {[%emt 0:00:35]} Kh6 {[%emt 0:00:15]} 64. f4 {[%emt 0:00:12]} Qf6 {[%emt 0:01:39]} 65. Kg2 {[%emt 0:01:02]} h4 {[%emt 0:03:26]} 66. Kh3 {[%emt 0:02:40]} g5 {[%emt 0:00:41]} 67. fxg5+ {[%emt 0:00:25]} Qxg5 {[%emt 0:00:14]} 1/2-1/2

[Event "95th Caplin Hastings Congress"]
[Site "Hastings"]
[Date "2020.01.03"]
[Round "7.26"]
[White "De Coverly, Roger D"]
[Black "Bin-Suhayl, Ieysaa"]
[Result "0-1"]
[ECO "A04"]
[WhiteElo "1940"]
[BlackElo "2177"]
[Annotator "NA"]
[PlyCount "76"]
[EventDate "2019.12.28"]
[EventType "swiss"]
[EventCountry "ENG"]
[SourceTitle "playchess.com"]
[Source "ChessBase"]
[SourceQuality "1"]
[TimeControl "40/6600+30:3000+30"]

1. Nf3 {[%emt 0:09:34]} Nf6 {[%emt 0:09:43]} 2. g3 {[%emt 0:00:08]} c5 {[%emt 0:00:03]} 3. Bg2 {[%emt 0:00:15]} Nc6 {[%emt 0:00:04]} 4. d4 {[%emt 0:00:17]} cxd4 {[%emt 0:00:23]} 5. Nxd4 {[%emt 0:00:08]} e5 {[%emt 0:00:28]} 6. Nxc6 {[%emt 0:00:16]} dxc6 {[%emt 0:03:01]} 7. Qxd8+ {[%emt 0:00:55]} Kxd8 {[%emt 0:00:03]} 8. Nd2 {[%emt 0:01:00]} Kc7 {[%emt 0:01:06]} 9. b3 {[%emt 0:01:21]} Bf5 {[%emt 0:09:42]} 10. e4 {[%emt 0:01:23]} Be6 {[%emt 0:04:22]} 11. Bb2 {[%emt 0:00:52]} Nd7 {[%emt 0:00:11]} 12. O-O-O {[%emt 0:06:04]} f6 {[%emt 0:06:58]} 13. h3 {[%emt 0:03:50]} a5 {[%emt 0:05:41]} 14. a4 {[%emt 0:06:31]} b5 {[%emt 0:01:35]} 15. f4 {[%emt 0:02:00]} bxa4 {[%emt 0:01:39]} 16. bxa4 {[%emt 0:00:22]} exf4 {[%emt 0:03:34]} 17. gxf4 {[%emt 0:00:56]} Nc5 {[%emt 0:00:08]} 18. f5 {[%emt 0:04:22]} Bc8 {[%emt 0:07:32]} 19. Nb1 {[%emt 0:18:34]} Nxa4 {[%emt 0:00:28]} 20. Ba1 {[%emt 0:01:24]} Bd6 {[%emt 0:00:27]} 21. Bd4 {[%emt 0:10:07]} Bf4+ {[%emt 0:01:43]} 22. Nd2 {[%emt 0:00:15]} Rd8 {[%emt 0:02:08]} 23. Rhf1 {[%emt 0:05:07]} Rxd4 {[%emt 0:03:36]} 24. Rxf4 {[%emt 0:00:22]} Nc3 {[%emt 0:00:03]} 25. Re1 {[%emt 0:00:31]} Na2+ {[%emt 0:00:29]} 26. Kd1 {[%emt 0:01:43]} a4 {[%emt 0:04:40]} 27. Ke2 {[%emt 0:03:13]} Ba6+ {[%emt 0:00:58]} 28. Ke3 {[%emt 0:01:34]} Rad8 {[%emt 0:00:12]} 29. Nf3 {[%emt 0:04:29]} Rd1 {[%emt 0:00:08]} 30. Rxd1 {[%emt 0:01:54]} Rxd1 {[%emt 0:00:05]} 31. Nd4 {[%emt 0:01:10]} Nc3 {[%emt 0:00:46]} 32. Rg4 {[%emt 0:06:06]} a3 {[%emt 0:00:59]} 33. Rxg7+ {[%emt 0:02:26]} Kb6 {[%emt 0:00:33]} 34. e5 {[%emt 0:04:49]} a2 {[%emt 0:00:56]} 35. Nb3 {[%emt 0:04:48]} Bc4 {[%emt 0:00:12]} 36. e6 {[%emt 0:04:34]} Bxb3 {[%emt 0:00:05]} 37. e7 {[%emt 0:00:31]} a1=Q {[%emt 0:00:10]} 38. e8=Q {[%emt 0:00:10]} Re1+ {[%emt 0:00:04]} 0-1